bitfinex-derivatives/quotes_BNBF0:USTF0_20241230
["timestamp","ask_amount","ask_price","bid_price","bid_amount"]
[1735576646082,0.93550425,694.91,694.45,1.06902454]
[1735576646579,0.93550425,694.9,694.45,1.06902454]
[1735576646781,0.93550425,694.89,694.45,1.06902454]
[1735576647181,0.93550425,694.88,694.48,1.06902454]
[1735576647582,0.93550425,694.87,694.48,1.06902454]
[1735576647784,0.93550425,694.86,694.48,1.06902454]
[1735576647983,0.93550425,694.86,694.47,1.06902454]
[1735576648183,0.93550425,694.85,694.47,1.06902454]
[1735576648484,0.93550425,694.84,694.47,1.06902454]
[1735576648882,0.93550425,694.83,694.47,1.06902454]
[1735576649082,0.93550425,694.82,694.47,1.06902454]
[1735576649283,0.93550425,694.82,694.42,1.06902454]
[1735576649478,0.93550425,694.81,694.42,1.06902454]
[1735576649783,0.93550425,694.8,694.42,1.06902454]
[1735576650184,0.93550425,694.79,694.42,1.06902454]
[1735576650386,0.93550425,694.78,694.42,1.06902454]
[1735576650787,0.93550425,694.77,694.42,1.06902454]
[1735576650988,0.93550425,694.76,694.42,1.06902454]
[1735576651387,0.93550425,694.76,693.76,2.20201837]
[1735576651388,0.93550425,694.75,694.31,1.06902454]
[1735576651787,0.93550425,694.74,694.31,1.06902454]
[1735576652088,0.93550425,694.73,694.31,1.06902454]
[1735576652387,0.93550425,694.72,694.31,1.06902454]
[1735576652587,0.93550425,694.71,694.31,1.06902454]
[1735576652790,0.93550425,694.7,694.27,1.06902454]
[1735576653285,0.93550425,694.69,694.27,1.06902454]
[1735576653690,0.93550425,694.68,694.27,1.06902454]
[1735576653888,0.93550425,694.68,694.03,1.0756796]
[1735576653889,0.93550425,694.67,694.2,1.06902454]
[1735576654088,0.93550425,694.66,694.2,1.06902454]
[1735576654388,0.93550425,694.65,694.2,1.06902454]
[1735576654689,1.50299627,695.11,694.2,1.06902454]
[1735576654889,1.50299627,695.11,694.23,1.06902454]
[1735576655090,0.9392263,695.1,694.23,1.06902454]
[1735576655388,0.9392263,695.09,694.23,1.06902454]
[1735576655783,1.50299627,695.11,693.6,0.75215622]
[1735576655784,0.9392263,695.08,694.28,1.06902454]
[1735576656187,0.9392263,695.07,694.28,1.06902454]
[1735576656489,0.9392263,695.06,694.28,1.06902454]
[1735576656990,0.9392263,695.05,694.26,1.06902454]
[1735576657184,0.9392263,695.04,694.26,1.06902454]
[1735576657587,2.44246063,695.03,694.26,1.06902454]
[1735576657989,2.44246063,695.03,694.23,1.06902454]
[1735576658190,0.9392263,695.02,694.23,1.06902454]
[1735576658592,0.9392263,695.01,694.23,1.06902454]
[1735576658991,0.9392263,695.0,694.23,1.06902454]
[1735576659193,0.9392263,694.99,694.25,1.06902454]
[1735576659490,0.9392263,694.98,694.25,1.06902454]
[1735576659889,0.9392263,694.97,694.25,1.06902454]
[1735576660088,0.9392263,694.96,694.25,1.06902454]
[1735576660394,0.9392263,694.95,694.25,1.06902454]
[1735576660692,0.9392263,694.94,693.81,1.06902454]
[1735576660893,0.9392263,694.93,693.81,1.06902454]
[1735576661492,0.9392263,694.92,693.83,1.06902454]
[1735576661987,0.9392263,694.91,693.83,1.06902454]
[1735576662189,0.9392263,694.9,693.83,1.06902454]
[1735576662390,0.9392263,694.9,693.84,1.06902454]
[1735576662592,0.9392263,694.89,693.84,1.06902454]
[1735576662989,0.9392263,694.88,693.84,1.06902454]
[1735576663190,0.9392263,694.88,693.19,1.07853961]
[1735576663191,0.9392263,694.87,693.99,1.06902454]
[1735576663692,0.9392263,694.86,693.99,1.06902454]
[1735576663991,0.9392263,694.85,693.99,1.06902454]
[1735576664491,0.9392263,694.84,693.99,1.06902454]
[1735576664796,0.9392263,694.84,694.0,1.06902454]
[1735576665092,0.9392263,694.83,694.0,1.06902454]
[1735576665491,0.9392263,694.82,694.0,1.06902454]
[1735576665990,1.50323433,695.03,694.0,1.06902454]
[1735576665991,0.9392263,694.81,694.0,1.06902454]
[1735576666291,0.9392263,694.8,694.0,1.06902454]
[1735576666485,1.50323433,695.03,694.0,1.06902454]
[1735576666486,0.9392263,694.79,694.0,1.06902454]
[1735576666889,0.9392263,694.78,694.0,1.06902454]
[1735576667090,0.9392263,694.77,694.0,1.06902454]
[1735576667293,0.9392263,694.77,694.13,1.06902454]
[1735576667491,0.9392263,694.76,694.13,1.06902454]
[1735576667789,0.9392263,694.75,694.13,1.06902454]
[1735576667993,2.44296404,694.75,694.13,1.06902454]
[1735576668193,0.9392263,694.74,694.13,1.06902454]
[1735576668396,0.9392263,694.73,694.16,1.06902454]
[1735576668791,0.9392263,694.72,694.16,1.06902454]
[1735576669189,0.9392263,694.71,694.16,1.06902454]
[1735576669395,0.9392263,694.7,694.17,1.06902454]
[1735576669588,0.9392263,694.69,694.17,1.06902454]
[1735576669988,0.9392263,694.68,694.17,1.06902454]
[1735576670394,0.28759184,695.43,694.17,1.06902454]
[1735576670395,0.9392263,694.67,694.17,1.06902454]
[1735576670788,0.9392263,694.66,694.17,1.06902454]
[1735576670993,0.9392263,694.65,694.17,1.06902454]
[1735576671194,0.9392263,694.64,694.17,1.06902454]
[1735576671497,1.50355366,694.87,694.17,1.06902454]
[1735576671896,0.93706027,694.86,694.17,1.06902454]
[1735576672197,0.93706027,694.85,694.16,1.06902454]
[1735576672589,0.93706027,694.84,694.16,1.06902454]
[1735576672889,0.93706027,694.83,694.16,1.06902454]
[1735576673094,0.93706027,694.82,694.16,1.06902454]
[1735576673296,0.93706027,694.82,694.14,1.06902454]
[1735576673496,0.93706027,694.81,694.14,1.06902454]
[1735576673696,0.93706027,694.8,694.14,1.06902454]
[1735576674093,1.50355366,694.87,694.14,1.06902454]
[1735576674094,0.93706027,694.79,694.14,1.06902454]
[1735576674293,0.93706027,694.78,694.14,1.06902454]
[1735576674494,0.93706027,694.77,694.17,1.06902454]
[1735576674790,0.93706027,694.76,694.17,1.06902454]
[1735576675295,0.93706027,694.75,694.17,1.06902454]
[1735576675597,0.93706027,694.74,694.17,1.06902454]
[1735576675896,0.93706027,694.73,694.17,1.06902454]
[1735576676091,0.93706027,694.72,694.17,1.06902454]
[1735576676496,0.93706027,694.71,694.17,1.06902454]
[1735576676692,1.50355366,694.87,694.17,1.06902454]
[1735576676897,1.50355366,694.87,694.21,1.06902454]
[1735576677292,0.937211,694.86,694.21,1.06902454]
[1735576677490,0.937211,694.85,694.21,1.06902454]
[1735576677897,0.937211,694.84,694.22,1.06902454]
[1735576678091,0.937211,694.83,694.22,1.06902454]
[1735576678397,0.937211,694.82,694.22,1.06902454]
[1735576678699,0.937211,694.81,694.2,1.06902454]
[1735576678897,1.50355366,694.87,694.2,1.06902454]
[1735576678898,0.937211,694.8,694.2,1.06902454]
[1735576679293,0.937211,694.79,694.2,1.06902454]
[1735576679492,0.937211,694.78,694.2,1.06902454]
[1735576679698,0.937211,694.78,694.21,1.06902454]
[1735576679901,0.937211,694.77,694.21,1.06902454]
[1735576680297,0.937211,694.76,694.21,1.06902454]
[1735576680500,1.5034021,694.95,694.21,1.06902454]
[1735576680901,0.93719129,694.94,694.21,1.06902454]
[1735576681104,0.93719129,694.93,694.32,1.06902454]
[1735576681606,0.93719129,694.92,694.32,1.06902454]
[1735576682103,0.93719129,694.91,694.32,1.06902454]
[1735576682304,0.93719129,694.9,694.32,1.06902454]
[1735576682603,0.93719129,694.89,694.32,1.06902454]
[1735576682998,0.93719129,694.88,694.32,1.06902454]
[1735576683205,0.93719129,694.87,694.32,1.06902454]
[1735576683505,0.93719129,694.86,694.38,1.06902454]
[1735576683703,0.93719129,694.85,694.38,1.06902454]
[1735576684107,0.93719129,694.84,694.38,1.06902454]
[1735576684309,0.93719129,694.83,694.38,1.06902454]
[1735576684808,0.93719129,694.82,694.23,1.06902454]
[1735576685111,0.93719129,694.81,694.23,1.06902454]
[1735576685704,0.93719129,694.8,694.23,1.06902454]
[1735576685908,0.93719129,694.79,694.09,1.06902454]
[1735576686307,0.93719129,694.78,694.09,1.06902454]
[1735576686612,0.93719129,694.77,694.09,1.06902454]
[1735576686905,0.93719129,694.76,694.09,1.06902454]
[1735576687113,0.93719129,694.76,694.07,1.06902454]
[1735576687310,0.93719129,694.75,694.07,1.06902454]
[1735576687712,0.93719129,694.74,694.07,1.06902454]
[1735576687908,0.93719129,694.73,694.07,1.06902454]
[1735576688106,0.93719129,694.73,694.06,1.06902454]
[1735576688406,0.93719129,694.72,694.06,1.06902454]
[1735576688711,0.93719129,694.71,694.06,1.06902454]
[1735576688907,0.93719129,694.7,694.06,1.06902454]
[1735576689106,0.93719129,694.7,694.03,1.06902454]
[1735576689309,0.93719129,694.69,694.03,1.06902454]
[1735576689713,0.93719129,694.68,694.03,1.06902454]
[1735576690014,0.93719129,694.67,694.03,1.06902454]
[1735576690212,0.93719129,694.66,694.03,1.06902454]
[1735576690408,0.93719129,694.65,693.97,1.06902454]
[1735576690811,0.93719129,694.64,693.97,1.06902454]
[1735576691210,0.93719129,694.63,693.97,1.06902454]
[1735576691411,0.93719129,694.62,693.97,1.06902454]
[1735576691711,0.93719129,694.61,693.92,1.06902454]
[1735576692113,0.93719129,694.6,693.92,1.06902454]
[1735576692506,0.93719129,694.59,693.92,1.06902454]
[1735576692711,0.93719129,694.58,693.92,1.06902454]
[1735576693213,0.93719129,694.57,693.92,1.06902454]
[1735576693413,0.93719129,694.56,693.92,1.06902454]
[1735576693814,0.93719129,694.55,693.92,1.06902454]
[1735576694209,0.93719129,694.54,693.93,1.06902454]
[1735576694408,1.06555923,695.36,693.93,1.06902454]
[1735576694613,1.50385687,694.72,693.93,1.06902454]
[1735576694813,0.28762907,695.34,693.93,1.06902454]
[1735576695006,1.5037594,694.76,693.93,1.06902454]
[1735576695211,0.93682902,694.75,693.93,1.06902454]
[1735576695715,0.28762907,695.34,693.61,1.36688608]
[1735576695716,0.93682902,694.74,693.96,1.06902454]
[1735576695917,0.93682902,694.73,693.96,1.06902454]
[1735576696413,0.93682902,694.72,693.96,1.06902454]
[1735576696615,0.93682902,694.71,693.96,1.06902454]
[1735576696814,0.93682902,694.71,694.05,1.06902454]
[1735576697015,0.93682902,694.7,694.05,1.06902454]
[1735576697210,0.93682902,694.69,694.05,1.06902454]
[1735576697614,1.50361862,694.84,694.05,1.06902454]
[1735576697817,0.93709793,694.83,694.05,1.06902454]
[1735576698016,0.93709793,694.82,694.05,1.06902454]
[1735576698213,0.93709793,694.82,694.15,1.06902454]
[1735576698418,0.93709793,694.81,694.15,1.06902454]
[1735576698811,0.93709793,694.8,694.15,1.06902454]
[1735576699012,0.93709793,694.79,694.15,1.06902454]
[1735576699217,0.93709793,694.78,694.16,1.06902454]
[1735576699615,0.93709793,694.77,694.16,1.06902454]
[1735576699816,0.93709793,694.76,694.16,1.06902454]
[1735576700216,1.50343998,694.9,694.16,1.06902454]
[1735576700619,0.93733968,694.89,694.14,1.06902454]
[1735576701214,0.93733968,694.88,694.14,1.06902454]
[1735576701415,0.93733968,694.87,694.14,1.06902454]
[1735576701619,0.93733968,694.86,694.14,1.06902454]
[1735576701821,0.93733968,694.86,694.09,1.06902454]
[1735576702018,0.93733968,694.85,694.09,1.06902454]
[1735576702319,0.93733968,694.84,694.09,1.06902454]
[1735576702723,0.93733968,694.84,694.12,1.06902454]
[1735576702922,0.93733968,694.83,694.12,1.06902454]
[1735576703223,0.93733968,694.82,694.12,1.06902454]
[1735576703620,0.93733968,694.81,694.12,1.06902454]
[1735576703922,0.93733968,694.8,694.12,1.06902454]
[1735576704223,0.93733968,694.79,694.13,1.06902454]
[1735576704623,0.93733968,694.78,694.13,1.06902454]
[1735576704925,0.93733968,694.77,694.13,1.06902454]
[1735576705221,0.93733968,694.76,694.13,1.06902454]
[1735576705723,0.93733968,694.75,694.07,1.06902454]
[1735576706023,0.93733968,694.74,694.07,1.06902454]
[1735576706625,0.93733968,694.73,694.04,1.06902454]
[1735576707024,0.28762907,695.34,694.04,1.06902454]
[1735576707225,1.50349952,694.9,694.04,1.06902454]
[1735576707426,0.93792543,694.89,694.04,1.06902454]
[1735576707821,0.28762907,695.34,693.64,0.76135225]
[1735576707822,0.93792543,694.88,694.17,1.06902454]
[1735576708227,0.93792543,694.87,694.17,1.06902454]
[1735576708419,0.93792543,694.86,694.17,1.06902454]
[1735576708821,0.93792543,694.85,694.17,1.06902454]
[1735576709027,0.93792543,694.85,693.64,0.76135225]
[1735576709028,0.93792543,694.85,694.12,1.06902454]
[1735576709425,0.93792543,694.84,694.12,1.06902454]
[1735576709627,0.93792543,694.83,694.12,1.06902454]
[1735576710024,0.93792543,694.82,694.15,1.06902454]
[1735576710429,0.93792543,694.81,694.15,1.06902454]
[1735576710824,0.93792543,694.8,694.15,1.06902454]
[1735576711028,0.93792543,694.8,694.14,1.06902454]
[1735576711228,0.93792543,694.79,694.14,1.06902454]
[1735576711529,1.50340751,694.9,694.14,1.06902454]
[1735576712131,1.50340751,694.9,694.13,1.06902454]
[1735576712633,0.93806286,694.89,694.13,1.06902454]
[1735576713029,0.93806286,694.88,694.13,1.06902454]
[1735576713533,0.93806286,694.87,694.12,1.06902454]
[1735576713733,0.93806286,694.86,694.12,1.06902454]
[1735576713933,1.50325056,695.01,694.12,1.06902454]
[1735576714337,0.93787006,695.0,694.12,1.06902454]
[1735576714536,0.93787006,695.0,694.2,1.06902454]
[1735576714834,0.93787006,694.99,694.2,1.06902454]
[1735576715229,0.93787006,694.98,694.2,1.06902454]
[1735576715530,0.93787006,694.97,694.19,1.06902454]
[1735576715935,0.93787006,694.96,694.19,1.06902454]
[1735576716234,0.93787006,694.95,694.19,1.06902454]
[1735576716626,0.93787006,694.94,694.18,1.06902454]
[1735576716835,0.93787006,694.93,694.18,1.06902454]
[1735576717134,0.93787006,694.92,694.18,1.06902454]
[1735576717326,1.50325056,695.01,694.18,1.06902454]
[1735576717327,0.93787006,694.91,694.18,1.06902454]
[1735576717834,0.93787006,694.9,694.18,1.06902454]
[1735576718229,1.50325056,695.01,694.18,1.06902454]
[1735576718735,1.50325056,695.01,694.19,1.06902454]
[1735576718736,0.93719707,695.0,694.19,1.06902454]
[1735576718934,0.93719707,694.99,694.19,1.06902454]
[1735576719334,0.93719707,694.98,694.19,1.06902454]
[1735576719831,0.93719707,694.97,694.19,1.06902454]
[1735576720035,1.50325056,695.01,693.92,1.0756796]
[1735576720036,0.93719707,694.96,694.15,1.06902454]
[1735576720237,0.93719707,694.95,694.15,1.06902454]
[1735576720736,0.93719707,694.94,694.15,1.06902454]
[1735576721238,0.93719707,694.93,694.26,1.06902454]
[1735576721833,0.93719707,694.92,694.26,1.06902454]
[1735576722033,0.93719707,694.91,694.24,1.06902454]
[1735576722436,0.93719707,694.9,694.24,1.06902454]
[1735576722629,1.50325056,695.01,694.24,1.06902454]
[1735576722630,0.93719707,694.89,694.24,1.06902454]
[1735576722834,1.50325056,695.01,694.24,1.06902454]
[1735576723336,1.50325056,695.01,693.69,0.76135225]
[1735576723337,0.93661948,695.0,694.18,1.06902454]
[1735576723733,0.93661948,694.99,694.18,1.06902454]
[1735576723937,0.93661948,694.98,694.18,1.06902454]
[1735576724137,0.93661948,694.98,694.2,1.06902454]
[1735576724331,0.93661948,694.97,694.2,1.06902454]
[1735576724731,0.93661948,694.96,694.2,1.06902454]
[1735576724935,0.93661948,694.95,694.2,1.06902454]
[1735576725431,1.50325056,695.01,693.8,1.07853961]
[1735576725432,0.93661948,694.94,694.19,1.06902454]
[1735576725840,0.93661948,694.93,694.19,1.06902454]
[1735576726338,0.93661948,694.92,694.19,1.06902454]
[1735576726534,0.93661948,694.92,693.71,0.76135225]
[1735576726535,0.93661948,694.91,694.21,1.06902454]
[1735576726941,0.93661948,694.9,694.21,1.06902454]
[1735576727140,0.93661948,694.89,694.21,1.06902454]
[1735576727334,1.50325056,695.01,694.21,1.06902454]
[1735576727533,1.50325056,695.01,694.23,1.06902454]
[1735576727739,0.93637133,695.0,694.23,1.06902454]
[1735576728140,0.93637133,694.99,694.23,1.06902454]
[1735576728637,0.93621817,695.12,694.23,1.06902454]
[1735576728842,0.93621817,695.12,694.3,1.06902454]
[1735576729140,0.93621817,695.11,694.3,1.06902454]
[1735576729535,1.50302332,695.13,694.3,1.06902454]
[1735576730041,0.93595314,695.12,694.3,1.06902454]
[1735576730342,1.50302332,695.13,694.56,1.06902454]
[1735576730537,0.28762907,695.34,694.56,1.06902454]
[1735576730740,0.93562291,695.33,694.56,1.06902454]
[1735576730936,1.50267718,695.25,694.56,1.06902454]
[1735576731141,0.93562291,695.32,694.56,1.06902454]
[1735576731342,1.50262311,695.25,694.56,1.06902454]
[1735576731543,1.50262311,695.25,694.62,1.06902454]
[1735576731843,0.93562291,695.24,694.62,1.06902454]
[1735576732044,0.93562291,695.23,694.62,1.06902454]
[1735576732445,0.93562291,695.22,694.62,1.06902454]
[1735576732745,0.93562291,695.21,694.62,1.06902454]
[1735576733044,0.93562291,695.2,694.62,1.06902454]
[1735576733246,0.93562291,695.2,693.97,2.20201837]
[1735576733247,0.93562291,695.19,694.6,1.06902454]
[1735576733545,0.93562291,695.18,694.6,1.06902454]
[1735576733945,1.50262311,695.25,694.6,1.06902454]
[1735576734146,0.93487366,695.24,694.58,1.06902454]
[1735576734343,0.93487366,695.23,694.58,1.06902454]
[1735576734742,0.93487366,695.22,694.58,1.06902454]
[1735576734947,0.93487366,695.21,694.58,1.06902454]
[1735576735343,0.93487366,695.21,693.92,2.20201837]
[1735576735344,0.93487366,695.2,694.52,1.06902454]
[1735576735549,0.93487366,695.19,694.52,1.06902454]
[1735576735749,0.93487366,695.18,694.52,1.06902454]
[1735576735948,0.93487366,695.17,694.52,1.06902454]
[1735576736547,0.93487366,695.16,694.52,1.06902454]
[1735576736745,0.93487366,695.16,694.48,1.06902454]
[1735576736945,0.93487366,695.15,694.48,1.06902454]
[1735576737446,0.93487366,695.14,694.48,1.06902454]
[1735576737746,0.93487366,695.14,694.5,1.06902454]
[1735576737951,0.93487366,695.13,694.5,1.06902454]
[1735576738251,0.93487366,695.12,694.5,1.06902454]
[1735576738650,0.93487366,695.11,694.5,1.06902454]
[1735576738946,0.93487366,695.1,694.5,1.06902454]
[1735576739146,0.93487366,695.09,694.5,1.06902454]
[1735576739649,0.93487366,695.08,694.5,1.06902454]
[1735576739951,0.93487366,695.07,694.51,1.06902454]
[1735576740353,1.50262311,695.25,694.51,1.06902454]
[1735576740554,0.9342722,695.24,694.51,1.06902454]
[1735576740854,0.9342722,695.23,694.51,1.06902454]
[1735576741047,0.9342722,695.22,694.51,1.06902454]
[1735576741446,0.9342722,695.22,693.93,2.20201837]
[1735576741447,0.9342722,695.21,694.52,1.06902454]
[1735576741653,0.9342722,695.2,694.52,1.06902454]
[1735576741951,0.9342722,695.19,694.52,1.06902454]
[1735576742253,0.9342722,695.18,694.52,1.06902454]
[1735576742552,0.9342722,695.17,694.52,1.06902454]
[1735576742748,0.9342722,695.17,694.53,1.06902454]
[1735576742950,0.9342722,695.16,694.53,1.06902454]
[1735576743151,0.9342722,695.15,694.53,1.06902454]
[1735576743551,0.9342722,695.14,694.53,1.06902454]
[1735576743756,0.9342722,695.13,694.52,1.06902454]
[1735576744052,0.9342722,695.12,694.52,1.06902454]
[1735576744452,0.9342722,695.11,694.52,1.06902454]
[1735576744652,0.9342722,695.1,694.52,1.06902454]
[1735576745050,0.9342722,695.09,694.52,1.06902454]
[1735576745252,0.9342722,695.09,694.53,1.06902454]
[1735576745453,0.9342722,695.08,694.53,1.06902454]
[1735576745954,0.9342722,695.07,694.53,1.06902454]
[1735576746253,1.50275289,695.18,694.53,1.06902454]
[1735576746254,0.9342722,695.06,694.53,1.06902454]
[1735576746553,0.9342722,695.05,694.53,1.06902454]
[1735576746852,0.9342722,695.04,694.53,1.06902454]
[1735576747153,0.9342722,695.04,694.42,1.06902454]
[1735576747345,0.9342722,695.03,694.42,1.06902454]
[1735576747750,0.9342722,695.02,694.42,1.06902454]
[1735576747948,0.9342722,695.01,694.42,1.06902454]
[1735576748146,0.9342722,695.01,694.4,1.06902454]
[1735576748447,0.9342722,695.0,694.4,1.06902454]
[1735576748849,0.9342722,694.99,694.4,1.06902454]
[1735576749049,0.9342722,694.98,694.4,1.06902454]
[1735576749252,1.50275289,695.18,694.41,1.06902454]
[1735576749253,0.9342722,694.97,694.41,1.06902454]
[1735576749547,0.9342722,694.96,694.41,1.06902454]
[1735576749954,0.9342722,694.95,694.41,1.06902454]
[1735576750252,0.9342722,694.94,694.41,1.06902454]
[1735576750555,1.50275289,695.18,694.19,1.06902454]
[1735576750556,0.9342722,694.93,694.19,1.06902454]
[1735576750755,0.9342722,694.92,694.19,1.06902454]
[1735576751153,0.9342722,694.91,694.19,1.06902454]
[1735576751355,0.9342722,694.9,694.19,1.06902454]
[1735576751548,0.9342722,694.9,694.13,1.06902454]
[1735576751758,0.9342722,694.89,694.13,1.06902454]
[1735576752150,0.9342722,694.88,694.13,1.06902454]
[1735576752458,1.50275289,695.18,694.13,1.06902454]
[1735576752658,0.93658204,695.17,694.13,1.06902454]
[1735576752856,0.28762907,695.34,693.71,0.76135225]
[1735576752857,1.50323974,695.05,694.27,1.06902454]
[1735576753155,0.93658204,695.16,694.27,1.06902454]
[1735576753351,0.93658204,695.04,694.27,1.06902454]
[1735576753550,0.93658204,695.03,694.27,1.06902454]
[1735576753750,0.93658204,695.02,694.27,1.06902454]
[1735576753968,0.93658204,695.02,694.34,1.06902454]
[1735576754156,0.93658204,695.01,694.34,1.06902454]
[1735576754457,0.93658204,695.0,694.34,1.06902454]
[1735576754857,0.93658204,694.99,694.34,1.06902454]
[1735576755057,0.93658204,694.98,694.35,1.06902454]
[1735576755252,0.93658204,694.97,694.35,1.06902454]
[1735576755655,0.93658204,694.96,694.35,1.06902454]
[1735576755860,0.93658204,694.95,694.35,1.06902454]
[1735576756159,0.93658204,694.94,694.35,1.06902454]
[1735576756359,0.93658204,694.93,694.35,1.06902454]
[1735576756658,0.93658204,694.93,694.12,1.0756796]
[1735576756659,0.93658204,694.93,694.4,1.06902454]
[1735576756861,0.93658204,694.92,694.4,1.06902454]
[1735576757356,0.93658204,694.91,694.4,1.06902454]
[1735576757761,0.93658204,694.91,693.91,1.29424753]
[1735576757762,1.50308283,695.16,694.41,1.06902454]
[1735576758058,0.93753696,695.15,694.41,1.06902454]
[1735576758360,0.93753696,695.14,694.41,1.06902454]
[1735576758662,0.93753696,695.13,694.41,1.06902454]
[1735576759158,0.93753696,695.12,694.51,1.06902454]
[1735576759664,0.93753696,695.11,694.51,1.06902454]
[1735576759865,0.93753696,695.1,694.51,1.06902454]
[1735576760062,0.93753696,695.09,694.51,1.06902454]
[1735576760262,0.93753696,695.08,694.51,1.06902454]
[1735576760462,0.93753696,695.08,694.45,1.06902454]
[1735576760662,0.93753696,695.07,694.45,1.06902454]
[1735576760963,0.93753696,695.06,694.45,1.06902454]
[1735576761263,0.93753696,695.05,694.45,1.06902454]
[1735576761563,0.93753696,695.04,694.45,1.06902454]
[1735576761761,0.93753696,695.03,694.45,1.06902454]
[1735576762263,0.93753696,695.02,694.45,1.06902454]
[1735576762665,0.93753696,695.01,694.45,1.06902454]
[1735576763061,0.93753696,695.0,694.47,1.06902454]
[1735576763262,0.93753696,694.99,694.47,1.06902454]
[1735576763660,0.93753696,694.98,694.47,1.06902454]
[1735576763859,0.93753696,694.97,694.47,1.06902454]
[1735576764064,0.93753696,694.96,694.47,1.06902454]
[1735576764465,1.50290973,695.11,694.47,1.06902454]
[1735576764859,0.93805473,695.1,694.47,1.06902454]
[1735576765065,1.50290973,695.11,694.47,1.06902454]
[1735576765066,0.93805473,695.09,694.47,1.06902454]
[1735576765364,0.93805473,695.08,694.47,1.06902454]
[1735576765565,0.93805473,695.08,694.49,1.06902454]
[1735576765760,0.93805473,695.07,694.49,1.06902454]
[1735576765961,0.93805473,695.06,694.49,1.06902454]
[1735576766463,0.93805473,695.05,694.49,1.06902454]
[1735576766665,0.93805473,695.04,694.49,1.06902454]
[1735576766967,0.93805473,695.03,694.53,1.06902454]
[1735576767266,0.93805473,695.02,694.53,1.06902454]
[1735576767465,0.93805473,695.01,694.53,1.06902454]
[1735576767668,0.93805473,695.0,694.53,1.06902454]
[1735576768166,0.93805473,694.99,694.55,1.06902454]
[1735576768365,1.5027637,695.23,694.55,1.06902454]
[1735576768565,0.93823874,695.22,694.55,1.06902454]
[1735576768960,0.93823874,695.21,694.55,1.06902454]
[1735576769165,0.93823874,695.2,694.62,1.06902454]
[1735576769566,0.93823874,695.19,694.62,1.06902454]
[1735576769764,0.93823874,695.18,694.62,1.06902454]
[1735576769962,0.93823874,695.17,694.58,1.06902454]
[1735576770365,0.93823874,695.16,694.58,1.06902454]
[1735576770567,0.93823874,695.15,694.58,1.06902454]
[1735576770962,0.93823874,695.14,694.5,1.06902454]
[1735576771365,0.93823874,695.13,694.5,1.06902454]
[1735576771564,0.93823874,695.12,694.5,1.06902454]
[1735576771765,0.93823874,695.11,694.5,1.06902454]
[1735576771969,0.93823874,695.1,694.55,1.06902454]
[1735576772165,0.93823874,695.09,694.55,1.06902454]
[1735576772560,0.93823874,695.08,694.55,1.06902454]
[1735576772867,0.93823874,695.07,694.55,1.06902454]
[1735576773066,0.93823874,695.06,694.6,1.06902454]
[1735576773365,0.93823874,695.05,694.6,1.06902454]
[1735576773761,0.93823874,695.04,694.6,1.06902454]
[1735576774266,0.93823874,695.03,694.62,1.06902454]
[1735576774567,0.93823874,695.02,694.62,1.06902454]
[1735576774867,0.93823874,695.01,694.62,1.06902454]
[1735576775267,0.93823874,695.01,694.33,1.07853961]
[1735576775268,0.93823874,695.0,694.53,1.06902454]
[1735576775465,0.93823874,694.99,694.53,1.06902454]
[1735576775665,0.93823874,694.98,694.53,1.06902454]
[1735576775961,0.93823874,694.97,694.53,1.06902454]
[1735576776166,0.93823874,694.96,694.53,1.06902454]
[1735576776563,0.93823874,694.95,694.47,1.06902454]
[1735576776761,0.93823874,694.94,694.47,1.06902454]
[1735576777065,0.93823874,694.93,694.47,1.06902454]
[1735576777462,0.93823874,694.92,694.47,1.06902454]
[1735576777665,0.93823874,694.91,694.47,1.06902454]
[1735576777871,0.93823874,694.91,694.44,1.06902454]
[1735576778065,0.93823874,694.9,694.44,1.06902454]
[1735576778263,0.93823874,694.89,694.44,1.06902454]
[1735576778667,0.93823874,694.88,694.44,1.06902454]
[1735576778870,0.93823874,694.87,694.39,1.06902454]
[1735576779368,0.93823874,694.86,694.39,1.06902454]
[1735576779571,0.93823874,694.85,694.39,1.06902454]
[1735576779974,0.93823874,694.84,694.35,1.06902454]
[1735576780266,0.93823874,694.83,694.35,1.06902454]
[1735576780473,0.93823874,694.82,694.35,1.06902454]
[1735576780772,0.93823874,694.81,694.35,1.06902454]
[1735576781168,0.93823874,694.8,694.36,1.06902454]
[1735576781366,0.93823874,694.79,694.36,1.06902454]
[1735576781673,1.50311529,694.97,694.36,1.06902454]
[1735576781974,0.93859822,694.96,694.36,1.06902454]
[1735576782473,0.93859822,694.95,694.36,1.06902454]
[1735576782873,0.93859822,694.94,694.36,1.06902454]
[1735576783074,0.93859822,694.93,694.36,1.06902454]
[1735576783275,0.93859822,694.92,694.37,1.06902454]
[1735576783676,0.93859822,694.91,694.37,1.06902454]
[1735576783976,0.93859822,694.9,694.37,1.06902454]
[1735576784474,0.93859822,694.89,694.37,1.06902454]
[1735576784675,0.93859822,694.88,694.37,1.06902454]
[1735576784877,0.93859822,694.88,694.4,1.06902454]
[1735576785075,0.93859822,694.87,694.4,1.06902454]
[1735576785471,0.93859822,694.86,694.4,1.06902454]
[1735576785777,0.93859822,694.85,694.4,1.06902454]
[1735576785974,0.93859822,694.85,693.77,2.20201837]
[1735576785975,0.93859822,694.85,694.43,1.06902454]
[1735576786174,0.93859822,694.84,694.43,1.06902454]
[1735576786474,0.93859822,694.83,694.43,1.06902454]